[Event "44th Chess Olympiad Open 2022"]
[Site "Chennai"]
[Date "2022.08.08"]
[Round "10.12"]
[White "Moranda, Wojciech"]
[Black "Hillarp Persson, Tiger"]
[Result "0-1"]
[ECO "B90"]
[WhiteElo "2636"]
[BlackElo "2516"]
[Annotator "TA"]
[PlyCount "114"]
[EventDate "2022.07.29"]
[EventType "team-tourn"]
[EventCountry "IND"]
[SourceTitle "playchess.com"]
[Source "ChessBase"]
[SourceQuality "1"]
[WhiteTeam "Poland"]
[BlackTeam "Sweden"]
[WhiteTeamCountry "POL"]
[BlackTeamCountry "SWE"]
[TimeControl "40/5400+30:1800+30"]

{[%evp 18,114,28,3,32,14,31,22,43,39,49,31,36,53,25,59,55,54,58,47,64,66,106,104,110,97,183,181,187,155,256,159,220,124,108,104,107,0,0,0,0,0,35,18,37,0,0,0,0,0,0,0,0,0,0,0,0,-8,-8,-8,-8,-8,-8,-8,-8,-8,-8,-29936,-5114,-29952,-29944,-12816,-10840,-29968,-29969,-29969,-29970,-29970,-29971,-29969,-29971,-29976,-29977,-29977,-29978,-29978,-29979,-29979,-29978,-29978,-29979,-29979,-29980,-29980,-29981,-29981,-29982,-29980,-29981]} 1. e4 {[%emt 0:00:04]} c5 {[%emt 0:00:06]} 2. Nf3 {[%emt 0:00:12]} d6 {[%emt 0:00:17]} 3. d4 {[%emt 0:00:09]} cxd4 {[%emt 0:00:06]} 4. Nxd4 {[%emt 0:00:07]} Nf6 {[%emt 0:00:05]} 5. Nc3 {[%emt 0:00:11]} a6 {[%emt 0:00:06]} 6. f3 {[%emt 0:00:27]} e5 {[%emt 0:00:16]} 7. Nb3 {[%emt 0:00:10]} Be6 {[%emt 0:00:43]} 8. Be3 {[%emt 0:00:08]} h5 {[%emt 0:00:08]} 9. Qd2 {[%emt 0:00:11]} Nbd7 {[%emt 0:00:07]} 10. O-O-O {[%emt 0:00:12]} Qc7 {[%emt 0:03:23] B90: Sicilian Najdorf: Unusual White 6th moves, 6 Be3 Ng4 and 6 Be3 e5.} 11. Kb1 {[%emt 0:03:12]} Be7 {[%emt 0:00:11]} 12. f4 {[%emt 0:01:04]} Rc8 {[%emt 0:07:20] The position is equal.} 13. f5 {[%emt 0:03:17]} Bc4 {[%emt 0:00:08]} 14. Bxc4 {[%emt 0:05:59]} Qxc4 {[%emt 0:00:06]} 15. Bg5 {[%emt 0:00:12]} b5 {[%emt 0:15:17] [#]} 16. Na5 $146 {[%emt 0:01:05]} ({Predecessor:} 16. a3 b4 17. axb4 Qxb4 18. Rhe1 Rb8 19. Qe2 Nc5 20. Bxf6 Nxb3 21. cxb3 gxf6 22. Nd5 Qxb3 {1-0 (28) Klovans,J (2492)-Adler,W Triesen 2000}) 16... Qb4 {[%emt 0:02:40]} 17. Nb7 {[%emt 0:01:55]} Rxc3 $1 {[%emt 0:01:21]} 18. Rhe1 {[%emt 0:00:11] Strongly threatening Bxf6.} d5 {[%emt 0:14:07] Hoping for ...Rc7.} 19. Bxf6 {[%emt 0:07:43]} Nxf6 {[%emt 0:00:21]} 20. Qxc3 {[%emt 0:00:38]} Qxc3 {[%emt 0:00:08]} 21. bxc3 {[%emt 0:00:16]} Kd7 {[%emt 0:15:17]} (21... Nxe4 $16 22. Kb2 Nf6) 22. exd5 $18 {[%emt 0:07:06] And now d6 would win.} Bd6 {[%emt 0:00:11]} 23. Re3 {[%emt 0:16:06]} h4 {[%emt 0:02:42]} (23... Rc8 $16 24. Rg3 Bf8) 24. h3 {[%emt 0:20:57]} e4 {[%emt 0:08:17]} (24... Rc8 $16 25. g3 hxg3) 25. Rd4 {[%emt 0:06:05]} (25. c4 $18) 25... Rh5 $16 {[%emt 0:05:31]} 26. Nxd6 {[%emt 0:06:30]} (26. Kb2 {looks sharper.} Rxf5 27. Re2 Rh5 28. Nxd6 Kxd6 29. c4) 26... Kxd6 {[%emt 0:00:09]} 27. Rexe4 {[%emt 0:00:22]} ({White should try} 27. c4 $16) 27... Nxe4 $11 {[%emt 0:01:16]} 28. Rxe4 {[%emt 0:00:05]} Kxd5 $16 {[%emt 0:03:10][%mdl 4096] Endgame KR-KR} 29. Rg4 {[%emt 0:01:05]} Rh7 {[%emt 0:01:11]} 30. Kb2 {[%emt 0:07:49]} Ke5 {[%emt 0:01:17]} 31. a4 {[%emt 0:04:33]} Kxf5 {[%emt 0:01:11]} 32. axb5 {[%emt 0:01:56]} axb5 {[%emt 0:00:06]} 33. Kb3 {[%emt 0:00:58]} g5 {[%emt 0:00:58]} 34. Kb4 {[%emt 0:00:48]} Rg7 {[%emt 0:02:17]} 35. Kxb5 {[%emt 0:01:04] Threatens to win with c4.} Ke5 {[%emt 0:00:08]} 36. Rd4 {[%emt 0:02:59]} f5 {[%emt 0:00:38]} 37. Kc4 {[%emt 0:00:22]} g4 {[%emt 0:01:52]} 38. Kd3 {[%emt 0:00:46]} gxh3 {[%emt 0:01:12]} 39. gxh3 {[%emt 0:00:03]} Rg3+ {[%emt 0:00:14][%mdl 64] Skewer} 40. Ke2 {[%emt 0:00:36]} Rxh3 {[%emt 0:01:20]} 41. Kf1 {[%emt 0:32:01]} f4 {[%emt 0:32:23]} 42. Rd8 $2 {[%emt 0:00:00][%mdl 8192]} (42. Kf2 $11) 42... Rh2 $1 {[%emt 0:00:00] ( -> ...Ke4)} 43. Rh8 {[%emt 0:00:00]} Ke4 {[%emt 0:00:00]} 44. Kg1 {[%emt 0:00:00]} Rxc2 {[%emt 0:00:00]} 45. Rxh4 {[%emt 0:00:00] [#]} Ke3 $1 {[%emt 0:00:00] Black mates.} 46. Rh8 {[%emt 0:00:00]} Rc1+ {[%emt 0:00:00]} 47. Kh2 {[%emt 0:00:00]} f3 {[%emt 0:00:00][%cal Bf4f3,Bf3f2][%mdl 32]} 48. Re8+ {[%emt 0:00:00]} Kf2 {[%emt 0:00:00]} 49. Ra8 {[%emt 0:00:00]} Kf1 {[%emt 0:00:00]} 50. Ra2 {[%emt 0:00:00]} f2 {[%emt 0:00:00]} 51. Kg3 {[%emt 0:00:00]} Rxc3+ {[%emt 0:00:00]} 52. Kh2 {[%emt 0:00:00]} Re3 {[%emt 0:00:00]} 53. Ra1+ {[%emt 0:00:00]} Re1 {[%emt 0:00:00]} 54. Ra2 {[%emt 0:00:00]} Re8 {[%emt 0:00:00]} 55. Ra1+ {[%emt 0:00:00]} Ke2 {[%emt 0:00:00]} 56. Ra2+ {[%emt 0:00:00]} Kf3 {[%emt 0:00:00][%cal Re8h8]} 57. Ra3+ {[%emt 0:00:00] [#]} Re3 $1 {[%emt 0:00:00] Black used his chance.  Weighted Error Value: White=0.53/Black=0.09 (flawless)} 0-1

[Event "44th Chess Olympiad Open 2022"]
[Site "Chennai"]
[Date "2022.08.08"]
[Round "10.12"]
[White "Berg, Emanuel"]
[Black "Bartel, Mateusz"]
[Result "0-1"]
[ECO "C47"]
[WhiteElo "2533"]
[BlackElo "2597"]
[Annotator "TA"]
[PlyCount "96"]
[EventDate "2022.07.29"]
[EventType "team-tourn"]
[EventCountry "IND"]
[SourceTitle "playchess.com"]
[Source "ChessBase"]
[SourceQuality "1"]
[WhiteTeam "Sweden"]
[BlackTeam "Poland"]
[WhiteTeamCountry "SWE"]
[BlackTeamCountry "POL"]
[TimeControl "40/5400+30:1800+30"]

{[%evp 10,96,1,0,0,0,-7,0,0,0,0,0,0,0,0,-4,-4,-19,0,0,0,-70,-64,-62,-71,-72,-76,-55,0,0,0,-54,-54,-54,0,0,-8,-8,0,0,0,-31,-24,-85,-73,-98,-97,-104,-107,-110,-101,-85,-94,-243,-255,-546,-539,-528,-490,-723,-679,-1984,-2087,-1901,-1545,-2933,-2614,-1312,-1121,-5864,-5501,-5864,-5625,-5145,-5065,-29965,-29966,-29963,-29963,-29958,-12826,-29979,-29980,-29980,-29981,-29981,-29982,-29982,-29981]} 1. e4 {[%emt 0:00:03]} e5 {[%emt 0:00:06]} 2. Nf3 {[%emt 0:00:18]} Nc6 {[%emt 0:00:06]} 3. Nc3 {[%emt 0:00:26]} Nf6 {[%emt 0:00:13]} 4. d4 {[%emt 0:00:15]} Bb4 {[%emt 0:05:49]} 5. d5 {[%emt 0:07:21]} Ne7 {[%emt 0:02:33]} 6. Qd3 {[%emt 0:10:17]} O-O {[%emt 0:03:50] C47: Scotch Four Knights and Four Knights with 4 g3.} 7. Bg5 {[%emt 0:28:05]} Bxc3+ {[%emt 0:12:28]} 8. Qxc3 {[%emt 0:05:30]} (8. bxc3 {keeps more tension.} Ne8 9. Qe3 f6 10. Bh4) 8... Nxe4 {[%emt 0:02:22] The position is equal.} 9. Qxe5 {[%emt 0:00:26]} Nxg5 {[%emt 0:01:24]} 10. Qxg5 {[%emt 0:00:12][%cal Od5d6] [#]} h6 $146 {[%emt 0:00:17]} ({Predecessor:} 10... f6 11. Qd2 d6 12. Bc4 Ng6 13. O-O Ne5 14. Qc3 Re8 15. Rfe1 Kh8 16. Be2 Bd7 {½-½ (31) Kausch,H-Hameister,R GER email 2005}) 11. Qd2 {[%emt 0:02:00]} d6 {[%emt 0:02:18]} 12. O-O-O {[%emt 0:01:32]} a5 {[%emt 0:00:30]} (12... Bf5 {seems wilder.} 13. Bd3 Bg4 14. Qf4 Qd7) 13. a4 {[%emt 0:07:43]} Bd7 {[%emt 0:11:33]} 14. b3 {[%emt 0:00:57]} Qb8 {[%emt 0:03:09]} 15. c4 {[%emt 0:17:36] Inhibits b5.} (15. Re1 $11 Re8 16. Re3) 15... c6 $15 {[%emt 0:02:25]} 16. dxc6 {[%emt 0:00:24]} bxc6 {[%emt 0:00:07]} 17. Kb2 {[%emt 0:01:36]} (17. Qxd6 $2 {[#]} Qxb3 $1 18. Qd3 Qxa4 $1 $17) 17... d5 {[%emt 0:01:46]} (17... c5 $5 {[%cal Rd7a4]} 18. Ra1 Qb6 $15) 18. Re1 {[%emt 0:03:51]} Be6 {[%emt 0:06:15]} (18... Qd6 $15) 19. c5 $1 $11 {[%emt 0:02:11]} d4 {[%emt 0:11:17]} 20. Rxe6 {[%emt 0:01:22]} fxe6 $15 {[%emt 0:02:57]} 21. Bc4 {[%emt 0:00:02]} Qf4 {[%emt 0:05:01]} (21... Rf6 $15 {is superior.}) 22. Qxf4 $11 {[%emt 0:01:58]} Rxf4 {[%emt 0:00:03]} 23. Re1 $1 {[%emt 0:00:14]} Rd8 {[%emt 0:02:40]} 24. Rxe6 {[%emt 0:00:42]} Kf8 {[%emt 0:00:01]} 25. Kc2 {[%emt 0:01:48]} Nd5 $36 {[%emt 0:02:58][%mdl 2048] Black is more active.} 26. Kd2 {[%emt 0:02:15]} (26. Kc1 $11) 26... Nb4 $17 {[%emt 0:03:50]} 27. Ne5 {[%emt 0:02:53] Ng6+ is the strong threat.} Rxf2+ {[%emt 0:00:31]} 28. Ke1 {[%emt 0:00:01]} Rxg2 {[%emt 0:01:37]} 29. Ng6+ {[%emt 0:00:27] [#]} Rxg6 $1 {[%emt 0:00:40]} 30. Rxg6 {[%emt 0:00:02][%mdl 4096] Endgame KRB-KRN} Re8+ {[%emt 0:00:51]} 31. Kf2 {[%emt 0:01:47] White does not recover from this.} (31. Kf1 $17 {keeps fighting.}) 31... d3 $19 {[%emt 0:03:05] Hoping for ...d2.} 32. Re6 $2 {[%emt 0:01:44]} (32. Rd6 {is a better defense.} Re2+ 33. Kg1) 32... Rxe6 {[%emt 0:02:40]} 33. Bxe6 {[%emt 0:00:01] KB-KN} Na6 {[%emt 0:00:31]} 34. Bd7 {[%emt 0:00:58]} (34. Ke3 $142 Nxc5 35. Bg4) 34... Nxc5 {[%emt 0:01:25]} 35. Bxc6 {[%emt 0:00:04]} Nxb3 {[%emt 0:00:19] Strongly threatening ...Nc5.} 36. Bf3 {[%emt 0:00:55]} Nc5 {[%emt 0:02:24]} 37. Bd1 {[%emt 0:00:19]} Ke7 {[%emt 0:00:05]} 38. Ke3 {[%emt 0:00:13]} g5 {[%emt 0:00:05]} 39. Kd4 {[%emt 0:00:56]} Kd6 {[%emt 0:00:02]} 40. h3 {[%emt 0:00:32]} d2 {[%emt 0:03:26]} 41. Ke3 {[%emt 0:20:19]} Ke5 {[%emt 0:01:34]} 42. Kxd2 {[%emt 0:00:36]} Kf4 {[%emt 0:00:05]} 43. Kc3 {[%emt 0:04:05]} Kg3 {[%emt 0:00:09]} 44. Kc4 {[%emt 0:02:19] [#]} Nxa4 $1 {[%emt 0:00:06][%mdl 512] ( -> ...Nb2+)} 45. Bxa4 {[%emt 0:00:17]} (45. Bg4 Kh4) 45... Kxh3 {[%emt 0:00:03] Black mates.} 46. Kd3 {[%emt 0:00:38]} g4 {[%emt 0:00:15]} 47. Bd7 {[%emt 0:01:48]} h5 {[%emt 0:00:04]} 48. Ke2 {[%emt 0:01:20]} Kh2 {[%emt 0:00:07] Weighted Error Value: White=0.97/Black=0.09 (flawless)} 0-1

[Event "44th Chess Olympiad Open 2022"]
[Site "Chennai"]
[Date "2022.08.08"]
[Round "10.12"]
[White "Blomqvist, Erik"]
[Black "Piorun, Kacper"]
[Result "0-1"]
[ECO "C02"]
[WhiteElo "2521"]
[BlackElo "2636"]
[Annotator "TA"]
[PlyCount "96"]
[EventDate "2022.07.29"]
[EventType "team-tourn"]
[EventCountry "IND"]
[SourceTitle "playchess.com"]
[Source "ChessBase"]
[SourceQuality "1"]
[WhiteTeam "Sweden"]
[BlackTeam "Poland"]
[WhiteTeamCountry "SWE"]
[BlackTeamCountry "POL"]
[TimeControl "40/5400+30:1800+30"]

{[%evp 14,96,19,18,27,15,23,15,35,10,34,18,18,12,53,41,82,82,69,46,64,22,14,18,18,14,35,40,91,5,19,23,68,0,0,0,0,0,56,-16,-7,-7,-16,-7,-8,-10,-20,-8,-8,-8,-8,-8,-8,-8,0,-33,-32,-31,-32,-57,-57,-57,-57,-65,-65,-109,-111,-111,-109,-111,-111,-104,-100,-931,-876,-29971,-29970,-29971,-29971,-29972,-29972,-29973,-29975,-29973,-29974]} 1. e4 {[%emt 0:00:04]} e6 {[%emt 0:00:06]} 2. d4 {[%emt 0:00:11]} d5 {[%emt 0:00:06]} 3. e5 {[%emt 0:00:17]} c5 {[%emt 0:00:06]} 4. c3 {[%emt 0:00:08]} Nc6 {[%emt 0:00:05]} 5. Nf3 {[%emt 0:00:10]} Bd7 {[%emt 0:00:06]} 6. Be2 {[%emt 0:00:23]} Nge7 {[%emt 0:00:21]} 7. O-O {[%emt 0:00:26]} Ng6 $1 {[%emt 0:00:23] The main line 7...Ng6 scores better than 7...Nf5.} 8. Be3 {[%emt 0:00:31]} Be7 {[%emt 0:00:28] C02: French: Advance Variation.} 9. Nbd2 {[%emt 0:01:24] 9.dxc5 is vanishing.} O-O {[%emt 0:01:00]} 10. Re1 {[%emt 0:00:52]} c4 {[%emt 0:07:41] [#] The position is equal.} 11. Nf1 $146 {[%emt 0:04:00]} ({Predecessor:} 11. Qc2 f6 12. exf6 Bxf6 13. Nf1 Nh4 14. Ng3 Be8 15. Qd2 Nxf3+ 16. Bxf3 Bg6 17. Bf4 {1-0 (30) Dimitrov,P (2465)-Shaw,T (2164) Pula 2007}) 11... f6 {[%emt 0:01:26]} 12. exf6 {[%emt 0:00:29]} Rxf6 {[%emt 0:01:33]} 13. Qd2 {[%emt 0:06:38]} Qb8 {[%emt 0:24:19]} 14. b3 {[%emt 0:08:19]} cxb3 {[%emt 0:03:59]} 15. axb3 {[%emt 0:00:10]} Bd6 {[%emt 0:01:09]} 16. g3 {[%emt 0:15:33]} Qc7 {[%emt 0:04:27]} 17. h4 {[%emt 0:06:13]} Raf8 {[%emt 0:02:13]} 18. h5 {[%emt 0:09:01]} Nge7 {[%emt 0:02:20]} 19. Nh4 {[%emt 0:01:48]} e5 {[%emt 0:08:39]} 20. dxe5 {[%emt 0:00:59]} Nxe5 {[%emt 0:00:37]} (20... Bxe5 $14 21. f4 Bd6) 21. Nh2 {[%emt 0:11:13]} ({White should try} 21. Rxa7 $16 N5c6 22. Ra2) 21... N5c6 {[%emt 0:10:56][%cal Od6g3] White must now prevent ...Bxg3!} 22. f4 {[%emt 0:04:56]} Qc8 {[%emt 0:01:23][%cal Od5d4]} 23. N2f3 {[%emt 0:04:18]} (23. Qd1 $14) 23... Bg4 {[%emt 0:02:21]} 24. Nd4 {[%emt 0:00:34]} Nxd4 {[%emt 0:07:19]} 25. Bxd4 {[%emt 0:01:00]} Re6 {[%emt 0:00:31]} 26. Rxa7 {[%emt 0:16:18]} ({Much weaker is} 26. Bxg4 Rxe1+ 27. Rxe1 (27. Qxe1 Qxg4 28. Ng2 a6 $11) 27... Qxg4 $11) (26. Kg2 $14 Re4 27. Bd3 (27. Bxa7 Bxf4 28. Qd3 Bxg3 $19)) 26... Nc6 $11 {[%emt 0:01:41] Threatens to win with ...Rfe8.} 27. Raa1 {[%emt 0:02:30]} Bxe2 {[%emt 0:08:13]} 28. Rxe2 {[%emt 0:00:05]} Nxd4 {[%emt 0:00:04]} 29. cxd4 {[%emt 0:00:13] [#]} Bb4 $1 {[%emt 0:00:12]} 30. Qd3 {[%emt 0:00:39]} (30. Qd1 Rxe2) 30... Rxe2 {[%emt 0:00:10]} 31. Qxe2 {[%emt 0:00:04]} Qc3 $1 {[%emt 0:00:07][%csl LRa1,LRb3,LRd4,LRg3]} 32. Rf1 {[%emt 0:04:01]} ({Much worse is} 32. Qe6+ Kh8 33. Rf1 Qxg3+ 34. Ng2 Bc3 35. Qxd5 Qd3 $17) 32... Qxg3+ {[%emt 0:00:08]} 33. Ng2 {[%emt 0:00:06]} Bc3 {[%emt 0:05:53]} 34. Qe6+ {[%emt 0:01:36]} (34. Rd1 $5 {[%cal Rd1d3]} Ra8 35. h6 $11) 34... Kh8 {[%emt 0:00:01]} 35. Qxd5 {[%emt 0:00:25]} Qd3 $36 {[%emt 0:01:59][%mdl 2048] Black has good play.} 36. Qf3 {[%emt 0:00:32]} Bxd4+ {[%emt 0:03:28]} 37. Kh2 $1 {[%emt 0:00:10]} Qxf3 {[%emt 0:01:41]} 38. Rxf3 $15 {[%emt 0:00:04][%mdl 4096] Endgame KRB-KRN} Rf5 {[%emt 0:00:08]} 39. Rh3 {[%emt 0:01:11] [#]} Bf2 $1 {[%emt 0:01:08] Black is more active.} 40. h6 {[%emt 0:01:07]} gxh6 {[%emt 0:01:19]} 41. Rxh6 {[%emt 0:06:04]} Kg7 {[%emt 0:01:25]} 42. Rh3 {[%emt 0:00:25]} Kg6 {[%emt 0:02:17]} 43. Nh4+ $2 {[%emt 0:03:13][%mdl 8192] This move loses the game for White.} (43. Ne3 $17 Rxf4 44. Kg2) 43... Bxh4 $19 {[%emt 0:00:24]} 44. Rxh4 {[%emt 0:00:05] [#]} Rh5 $1 {[%emt 0:00:08] Black mates.} 45. Rxh5 {[%emt 0:01:45]} Kxh5 {[%emt 0:00:02]} 46. Kg3 {[%emt 0:00:59]} Kg6 {[%emt 0:00:06]} 47. Kg4 {[%emt 0:00:52]} h5+ {[%emt 0:01:12]} 48. Kh4 {[%emt 0:00:47]} b5 {[%emt 0:00:04] Weighted Error Value: White=0.45/Black=0.09 (flawless)} 0-1

[Event "44th Chess Olympiad Open 2022"]
[Site "Chennai"]
[Date "2022.08.08"]
[Round "10.13"]
[White "Karthikeyan, Murali"]
[Black "Druska, Juraj"]
[Result "1/2-1/2"]
[ECO "B36"]
[WhiteElo "2613"]
[BlackElo "2519"]
[Annotator "TA"]
[PlyCount "92"]
[EventDate "2022.07.29"]
[EventType "team-tourn"]
[EventCountry "IND"]
[SourceTitle "playchess.com"]
[Source "ChessBase"]
[SourceQuality "1"]
[WhiteTeam "India"]
[BlackTeam "Slovakia"]
[WhiteTeamCountry "IND"]
[BlackTeamCountry "SVK"]
[TimeControl "40/5400+30:1800+30"]

{[%evp 18,92,60,30,37,35,57,30,26,25,16,12,0,0,0,0,0,0,0,-11,-19,-12,-17,-16,-20,-20,-18,-12,-8,-8,-6,-6,-6,-7,0,0,0,0,0,0,0,0,0,0,0,0,0,0,0,0,0,0,0,0,0,0,0,0,0,0,0,0,0,0,0,0,0,0,0,0,0,0,0,0,0,0,0]} 1. e4 {[%emt 0:00:03]} c5 {[%emt 0:00:14]} 2. Nf3 {[%emt 0:00:08]} Nc6 {[%emt 0:00:11]} 3. d4 {[%emt 0:00:14]} cxd4 {[%emt 0:00:06]} 4. Nxd4 {[%emt 0:00:05]} g6 {[%emt 0:00:08]} 5. c4 {[%emt 0:00:31]} Nf6 {[%emt 0:00:21]} 6. Nc3 {[%emt 0:00:07]} d6 {[%emt 0:00:06]} 7. Be2 {[%emt 0:01:11]} Nxd4 {[%emt 0:00:12]} 8. Qxd4 {[%emt 0:00:06]} Bg7 {[%emt 0:00:03]} 9. Be3 {[%emt 0:00:57]} O-O {[%emt 0:00:08]} 10. Qd2 {[%emt 0:01:02]} a5 {[%emt 0:00:39][%cal Ba7a5,Ba5a4][%mdl 32] B36: Sicilian: Maroczy Bind: Gurgenidze System.} 11. O-O {[%emt 0:01:20]} a4 {[%emt 0:00:17]} 12. f3 {[%emt 0:01:06] 12.Bd4 is the modern continuation.} Qa5 {[%emt 0:01:07] White has an edge.} 13. Rfc1 {[%emt 0:21:25]} Be6 {[%emt 0:00:58]} 14. Rab1 {[%emt 0:01:09] The position is equal.} Rfc8 {[%emt 0:01:04]} 15. b4 {[%emt 0:07:49]} axb3 $1 {[%emt 0:00:05]} 16. axb3 {[%emt 0:00:04]} Qb4 $1 {[%emt 0:00:16]} 17. Kf1 {[%emt 0:15:57]} Nd7 {[%emt 0:08:51] [#]} 18. Qc2 $146 {[%emt 0:05:41]} ({Predecessor:} 18. Nd5 Qxd2 19. Bxd2 Kf8 20. Bg5 f6 21. Be3 f5 22. Nf4 Bf7 23. exf5 gxf5 24. Nd5 b5 25. Rd1 bxc4 26. bxc4 Rab8 {½-½ (26) Dolezal,C (2389)-Mekhitarian,K (2544) Buenos Aires 2017}) 18... Qxc3 {[%emt 0:07:21]} 19. Qxc3 {[%emt 0:00:09]} Bxc3 {[%emt 0:00:04]} 20. Rxc3 {[%emt 0:00:06]} b5 {[%emt 0:00:06]} 21. Bd4 {[%emt 0:16:29]} bxc4 {[%emt 0:01:00]} 22. Rbc1 {[%emt 0:01:39]} Kf8 {[%emt 0:10:51]} 23. Bxc4 {[%emt 0:03:31]} Bxc4+ {[%emt 0:00:20]} 24. Rxc4 {[%emt 0:00:05]} Rxc4 {[%emt 0:00:18]} 25. Rxc4 $11 {[%emt 0:00:08][%mdl 4096] Endgame KRB-KRN} f6 {[%emt 0:04:43]} 26. b4 {[%emt 0:02:17]} Ne5 {[%emt 0:08:04]} 27. Bxe5 {[%emt 0:03:52]} fxe5 {[%emt 0:00:09] KR-KR} 28. Ke2 {[%emt 0:02:16]} Ke8 {[%emt 0:11:52]} 29. Kd3 {[%emt 0:01:39]} Kd7 {[%emt 0:00:11]} 30. Rc2 {[%emt 0:02:31]} e6 {[%emt 0:02:01]} 31. b5 {[%emt 0:01:04]} Rb8 {[%emt 0:15:51]} 32. Rb2 {[%emt 0:00:41]} d5 {[%emt 0:00:00]} 33. Kc3 {[%emt 0:00:16]} Rc8+ {[%emt 0:00:30]} 34. Kb4 {[%emt 0:02:39]} Rc4+ {[%emt 0:00:18]} 35. Ka5 {[%emt 0:00:09]} Kc7 {[%emt 0:00:02]} 36. exd5 {[%emt 0:06:05]} exd5 {[%emt 0:00:01]} 37. b6+ {[%emt 0:00:07]} Kb7 {[%emt 0:00:15]} 38. Kb5 {[%emt 0:02:15] Prevents Rc5+.} Rc6 {[%emt 0:02:34]} 39. Re2 {[%emt 0:01:24]} e4 {[%emt 0:05:33]} 40. fxe4 {[%emt 0:01:20]} dxe4 {[%emt 0:00:08]} 41. g3 {[%emt 0:30:49]} Rxb6+ {[%emt 0:41:02]} 42. Kc5 {[%emt 0:00:27]} Kc7 {[%emt 0:00:13]} 43. Rxe4 {[%emt 0:00:13]} Rc6+ {[%emt 0:00:10]} 44. Kd5 {[%emt 0:00:05] [#] And now Re7+ would win.} Kd7 {[%emt 0:00:19] Inhibits Re7+.} 45. Ra4 {[%emt 0:00:00] White threatens Ra7+ and mate.} Rc7 {[%emt 0:00:00] Inhibits Ra7.} 46. Ke4 {[%emt 0:00:00]} Ke6 {[%emt 0:00:00] Weighted Error Value: White=0.01 (flawless) /Black=0.01 (flawless)} 1/2-1/2

[Event "44th Chess Olympiad Open 2022"]
[Site "Chennai"]
[Date "2022.08.08"]
[Round "10.13"]
[White "Ganguly, Surya Shekhar"]
[Black "Pechac, Jergus"]
[Result "1/2-1/2"]
[ECO "C60"]
[WhiteElo "2608"]
[BlackElo "2594"]
[Annotator "TA"]
[PlyCount "85"]
[EventDate "2022.07.29"]
[EventType "team-tourn"]
[EventCountry "IND"]
[SourceTitle "playchess.com"]
[Source "ChessBase"]
[SourceQuality "1"]
[WhiteTeam "India"]
[BlackTeam "Slovakia"]
[WhiteTeamCountry "IND"]
[BlackTeamCountry "SVK"]
[TimeControl "40/5400+30:1800+30"]

{[%evp 9,85,35,41,33,35,33,35,34,25,16,26,0,0,0,15,20,34,8,37,37,56,43,38,25,57,0,0,0,45,32,86,75,89,87,61,84,78,81,68,94,93,93,100,120,103,66,59,48,92,74,79,80,61,62,92,91,106,97,81,89,98,95,99,102,95,45,94,0,0,0,0,0,0,0,0,0,0,0]} 1. e4 {[%emt 0:00:39]} e5 {[%emt 0:00:06]} 2. Nf3 {[%emt 0:00:11]} Nc6 {[%emt 0:00:04]} 3. Bb5 {[%emt 0:00:15]} Nge7 {[%emt 0:00:08]} 4. Nc3 {[%emt 0:01:00]} Ng6 {[%emt 0:00:06]} 5. d4 {[%emt 0:00:45]} Nxd4 {[%emt 0:00:06]} 6. Nxd4 {[%emt 0:00:08] C60: Ruy Lopez: Unusual Black 3rd moves and 3...g6.} exd4 {[%emt 0:00:05]} 7. Qxd4 {[%emt 0:00:07]} c6 {[%emt 0:00:06]} 8. Be2 {[%emt 0:00:07] White is slightly better.} Qb6 {[%emt 0:00:05]} 9. Qd3 {[%emt 0:00:43]} Be7 {[%emt 0:00:08]} 10. O-O {[%emt 0:00:30]} O-O {[%emt 0:00:06]} 11. a4 {[%emt 0:00:14][%cal Ba2a4,Ba4a5][%mdl 32]} d6 {[%emt 0:00:07]} 12. a5 {[%emt 0:00:56]} Qc7 {[%emt 0:00:05]} 13. f4 {[%emt 0:00:14]} Bd7 {[%emt 0:00:07] [#]} 14. Be3 $146 {[%emt 0:00:18]} ({Predecessor:} 14. Qc4 Qc8 15. Be3 Re8 16. Bd3 b5 17. axb6 axb6 18. Rxa8 Qxa8 19. Bxb6 Rb8 20. Be3 Rxb2 {½-½ (33) Ragger,M (2647)-Pechac,J (2599) Germany 2022}) 14... Rfe8 {[%emt 0:00:05]} 15. g3 {[%emt 0:09:19]} b5 {[%emt 0:01:14]} 16. Bf3 {[%emt 0:10:48]} Rab8 {[%emt 0:03:05]} 17. Ne2 {[%emt 0:05:54]} (17. b4 $14) 17... b4 $11 {[%emt 0:00:41]} 18. Rfd1 {[%emt 0:05:22][%cal Oe4e5]} c5 {[%emt 0:01:02]} 19. e5 {[%emt 0:04:59][%cal Re5d6]} Bb5 {[%emt 0:02:19]} (19... Qc8 $14) 20. exd6 $16 {[%emt 0:00:38] White is more active.} Bxd6 {[%emt 0:00:27]} 21. Qxd6 {[%emt 0:00:31]} Qxd6 {[%emt 0:00:07]} 22. Rxd6 {[%emt 0:00:05] [#] And now Kf2 would win.} Rxe3 {[%emt 0:00:10]} 23. Kf2 {[%emt 0:00:11]} Rbe8 {[%emt 0:00:22][%cal Rb5e2]} 24. Ng1 {[%emt 0:00:38]} Ne7 {[%emt 0:10:16] Against Bc6} 25. Rad1 {[%emt 0:10:56]} Re6 {[%emt 0:00:07]} 26. Rxe6 {[%emt 0:02:06]} fxe6 {[%emt 0:00:03]} 27. c3 {[%emt 0:01:20]} bxc3 {[%emt 0:10:17]} 28. bxc3 {[%emt 0:00:06]} a6 {[%emt 0:04:05]} 29. Be4 {[%emt 0:08:36]} Bc4 {[%emt 0:17:55]} 30. Bd3 {[%emt 0:25:28]} Bxd3 {[%emt 0:16:15]} 31. Rxd3 {[%emt 0:00:03][%mdl 4096] Endgame KRN-KRN} e5 {[%emt 0:00:29]} 32. fxe5 {[%emt 0:03:01] aiming for Rd6.} Nc6 {[%emt 0:00:48][%csl LRa5,LRe5]} 33. Rd6 {[%emt 0:00:40]} Nxe5 {[%emt 0:01:03]} 34. Rxa6 {[%emt 0:04:56]} Ng4+ {[%emt 0:00:33]} 35. Kf3 {[%emt 0:01:47]} Nxh2+ {[%emt 0:00:31]} 36. Kg2 {[%emt 0:00:05]} Ng4 {[%emt 0:00:06] [#]} 37. Rc6 {[%emt 0:00:06]} (37. Ra7 $1 $16) 37... Rf8 {[%emt 0:13:20]} (37... Ne3+ $14 {was preferrable.} 38. Kh3 Kf7) 38. Rxc5 {[%emt 0:00:25]} (38. a6 $16) 38... Ne3+ $11 {[%emt 0:00:19] The position is equal.} 39. Kh3 {[%emt 0:03:00]} Rf1 $1 {[%emt 0:00:38]} 40. Kh2 {[%emt 0:00:10]} Rf2+ {[%emt 0:00:48]} 41. Kh3 {[%emt 0:32:22]} Rf1 {[%emt 0:30:49]} 42. Kh2 {[%emt 0:00:00]} Rf2+ {[%emt 0:00:00]} 43. Kh3 {[%emt 0:00:00] Weighted Error Value: White=0.11 (very precise) /Black=0.09 (flawless)} 1/2-1/2